Cogmind - Beta 13 @@@ ROGUE MODE // 2024.04.29 @ 16:19:06 Player: A Foxgirl OWO Result: Destroyed by LE-VGI(R) with Subdweller Laser Performance ------------- Evolutions (0) 0 Regions Visited (3) 600 Robots Destroyed (15) 75 Value Destroyed (465) 465 Prototype IDs (0) 0 Alien Tech Used (0) 0 Bonus (0) 0 TOTAL SCORE: 1140 Bonus ------- None Cogmind --------- Core Integrity 0/250 Matter 300/300 Energy 250/250 System Corruption 0% Temperature Cool (6) Movement Treading (160) Location -10/Subcaves Parts ------- > --- POWER (1) -------- Ion Engine > --- PROPULSION (2) --- Light Treads > --- UTILITY (2) ------ Small Storage Unit Targeting Computer > --- WEAPON (2) ------- Light Assault Rifle Light Assault Rifle > --- INVENTORY (8) ---- Light Nuclear Core Flight Unit Flight Unit Experimental Sensor Array Utility Shielding Hacking Suite Assault Rifle Grenade Launcher Peak State ------------ > --- POWER ------------ Light Nuclear Core > --- PROPULSION ------- Light Treads Light Treads > --- UTILITY ---------- Small Storage Unit Targeting Computer > --- WEAPON ----------- Assault Rifle Light Assault Rifle > --- INVENTORY -------- Light Nuclear Core Hover Unit Flight Unit Flight Unit Utility Shielding Medium Laser Light Assault Rifle Light Assault Rifle [Rating: 10] Favorites ----------- Power Ion Engine Engine Ion Engine Power Core Light Nuclear Core Propulsion Light Treads Treads Light Treads Utility Small Storage Unit Device Terrain Scanner Storage Small Storage Unit Processor Targeting Computer Protection Utility Shielding Weapon Light Assault Rifle Ballistic Gun Light Assault Rifle Build | -11 -10 -10 -10 ------- Run | Yrd Mat Min Sub Slots Evolved . | . . . . Power . | . . . . Propulsion . | . . . . Utility . | . . . . Weapon . | . . . . Parts Attached 19 | 6 12 1 . Power 5 | 1 4 . . Engine 4 | 1 3 . . Core 1 | . 1 . . Reactor . | . . . . Propulsion 3 | 2 . 1 . Treads 3 | 2 . 1 . Leg . | . . . . Wheel . | . . . . Hover . | . . . . Flight . | . . . . Utility 5 | 1 4 . . Device 2 | . 2 . . Storage 1 | 1 . . . Processor 1 | . 1 . . Hackware . | . . . . Protection 1 | . 1 . . Artifact . | . . . . Weapon 6 | 2 4 . . Energy Gun . | . . . . Energy Cannon . | . . . . Ballistic Gun 6 | 2 4 . . Ballistic Cannon . | . . . . Launcher . | . . . . Special Weapon . | . . . . Impact Weapon . | . . . . Slashing Weapon . | . . . . Piercing Weapon . | . . . . Special Melee Weapon . | . . . . Unidentified Prototypes . | . . . . Parts Lost 2 | . 1 . 1 Power . | . . . . Propulsion 1 | . . . 1 Utility 1 | . 1 . . Weapon . | . . . . Highest Loss Streak 1 | . 1 . 1 To Critical Strikes . | . . . . Average Slot Usage (%) 99 | . 98 100 99 Engine 12 | . 10 14 14 Core 1 | . 3 . . Treads 27 | . 28 28 27 Device 2 | . 5 . . Storage 14 | . 14 14 14 Processor 10 | . 5 14 14 Ballistic Gun 28 | . 28 28 28 Naked Turns . | . . . . Heaviest Build 13 | 11 13 12 12 Greatest Support 40 | 40 40 40 40 Greatest Overweight (x) . | . . . . Average Overweight (x) . | . . . . Largest Inventory Capacity 8 | 8 8 8 8 Average Capacity 7 | 7 8 8 8 Most Carried 8 | 4 8 8 8 Average Carried 7 | 3 7 7 8 Final Capacity 8 | 8 8 8 8 Final Carried 8 | 4 8 8 8 Class Distribution -------------------- 100% | Mutant Dominant Class ---------------- Mutant | -10/Materials Mutant | -10/Mines Mutant | -10/Subcaves Resources | -11 -10 -10 -10 ----------- Run | Yrd Mat Min Sub Matter Collected 550 | 195 297 40 18 Remotely . | . . . . Salvage Created 543 | . 444 . 99 Parts 41 | . 37 . 4 Haulers Intercepted . | . . . . Recyclers Shooed . | . . . . Parts Field Recycled . | . . . . Retrieved Matter . | . . . . Parts Self-Destructed 13 | . . . 13 Prevented . | . . . . Kills | -11 -10 -10 -10 ------- Run | Yrd Mat Min Sub Combat Hostiles Destroyed 14 | . 12 . 2 Guns 14 | . 12 . 2 Classes Destroyed 4 | . 3 . 1 Operator 1 | . 1 . . Swarmer 3 | . 3 . . Grunt 10 | . 9 . 1 Subdweller 1 | . . . 1 Best Kill Streak 3 | . 3 . 2 Combat Bots Only 3 | . 3 . 2 Max Kills in Single Turn 1 | . 1 . 1 Gunslinging . | . . . . Exploded . | . . . . Melee . | . . . . Uniques/NPCs Destroyed . | . . . . Combat | -11 -10 -10 -10 -------- Run | Yrd Mat Min Sub Hostile Shots Fired 100 | . 62 1 37 Missed 27 | . 13 1 13 Damage Taken 940 | . 562 . 378 Core 264 | . 163 . 101 Absorbed by Shields . | . . . . Regen/Repaired (Parts) 62 | . 62 . . Core Remaining (%) 100 | 100 . . . Volleys Fired 48 | . 39 . 9 Largest 2 | . 2 . 2 Hottest 40 | . 40 . 40 Shots Fired 96 | . 78 . 18 Gun 96 | . 78 . 18 Cannon . | . . . . Launcher . | . . . . Special . | . . . . Kinetic 96 | . 78 . 18 Thermal . | . . . . Explosive . | . . . . Electromagnetic . | . . . . Robot Hit Streak 14 | . 13 . 14 Robot Miss Streak 3 | . 3 . 1 Penetration Max . | . . . . Secondary Targets 2 | . 2 . . Max Gunslinging Chain 1 | . 1 . . Shots Hit Robots 66 | . 53 . 13 Core Hits 32 | . 26 . 6 Critical Kills . | . . . . Critical Parts Destroyed . | . . . . Critical Strikes . | . . . . Melee Attacks . | . . . . Impact . | . . . . Slashing . | . . . . Piercing . | . . . . Sneak Attacks . | . . . . Combat Hostiles . | . . . . Follow-up Attacks . | . . . . Damage Inflicted 652 | 3 545 . 104 Guns 649 | . 545 . 104 Cannons . | . . . . Explosions . | . . . . Melee . | . . . . Ramming 3 | 3 . . . Kinetic 649 | . 545 . 104 Thermal . | . . . . Explosive . | . . . . Electromagnetic . | . . . . Impact . | . . . . Slashing . | . . . . Piercing . | . . . . Highest Corruption . | . . . . Average Corruption . | . . . . Corruption Purged . | . . . . Corruption Blocked . | . . . . Overload Shots . | . . . . Overflow Damage . | . . . . Projectiles . | . . . . Explosions . | . . . . Melee . | . . . . Knockbacks . | . . . . Impact . | . . . . Kinetic . | . . . . Secondary . | . . . . Self-Inflicted Damage . | . . . . Shots . | . . . . Rammed 2 | 2 . . . Targets Rammed 2 | 2 . . . Kicked . | . . . . Crushed . | . . . . Highest Temperature 20 | . 20 . . Average Temperature 7 | . 7 . . Received Heat Transfer 399 | . 195 . 204 Siege Activations . | . . . . Robots Corrupted . | . . . . Combat Hostiles . | . . . . Parts Fried . | . . . . Impact Corruptions . | . . . . Robots Melted . | . . . . Combat Hostiles . | . . . . Parts Melted 1 | . . . 1 Heat Transferred . | . . . . Parts Sabotaged . | . . . . Parts Stolen . | . . . . Parts Stripped . | . . . . Power Chain Reactions . | . . . . Alert | -11 -10 -10 -10 ------- Run | Yrd Mat Min Sub Peak Influence 153 | . 153 89 . Initial 59 | . . 59 . Average 52 | . 65 40 . Maximum Alert Level . | . . . . Low Security (%) 100 | 100 100 100 . Level 1 . | . . . . Level 2 . | . . . . Level 3 . | . . . . Level 4 . | . . . . Level 5 . | . . . . High Security . | . . . . Max Security . | . . . . Squads Dispatched 3 | . 3 . . Investigation 1 | . 1 . . Extermination . | . . . . Reinforcement 2 | . 2 . . Assault . | . . . . Garrison . | . . . . Intercept . | . . . . Searches Triggered . | . . . . Construction Impeded . | . . . . Haulers Reinforced . | . . . . Active Scanning Responses . | . . . . Cargo Convoy Interrupts . | . . . . Stealth | -11 -10 -10 -10 --------- Run | Yrd Mat Min Sub Distress Signals 2 | . 2 . . Communications Jammed . | . . . . Distress Signals . | . . . . Times Spotted 32 | . 24 1 7 Peak Tracking Total 5 | . 4 2 5 Tactical Retreats 2 | . 1 1 . Traps | -11 -10 -10 -10 ------- Run | Yrd Mat Min Sub Traps Triggered 2 | . 2 . . Indirectly . | . . . . Trap Hack Attempts . | . . . . Triggered . | . . . . Disarmed . | . . . . Reprogrammed . | . . . . Reused . | . . . . Traps Extracted . | . . . . Installed . | . . . . Triggered . | . . . . Machines | -11 -10 -10 -10 ---------- Run | Yrd Mat Min Sub Machines Disabled . | . . . . Max in Single Turn . | . . . . Machines Repaired . | . . . . Machines Dismantled . | . . . . Machines Sabotaged . | . . . . Overloaded Fab Kills . | . . . . Hacking | -11 -10 -10 -10 --------- Run | Yrd Mat Min Sub Machines Accessed 6 | . 5 1 . Terminals 3 | . 2 1 . Fabricators . | . . . . Repair Stations 1 | . 1 . . Recycling Units 2 | . 2 . . Scanalyzers . | . . . . Garrison Access . | . . . . Total Hacks 13 | . 11 2 . Successful 7 | . 5 2 . Failed 6 | . 6 . . Catastrophic 1 | . 1 . . Database Lockouts . | . . . . Manual 2 | . 2 . . Terminals 8 | . 6 2 . Fabricators . | . . . . Repair Stations 3 | . 3 . . Recycling Units 2 | . 2 . . Scanalyzers . | . . . . Garrison Access . | . . . . Terminal Hacks 3 | . 1 2 . Alert Level 1 | . . 1 . Investigation Status 1 | . . 1 . Recall Investigation 1 | . 1 . . Fabricator Hacks . | . . . . Repair Station Hacks 2 | . 2 . . Scan Component 1 | . 1 . . Repair 1 | . 1 . . Recycling Unit Hacks 2 | . 2 . . Report Inventory 2 | . 2 . . Scanalyzer . | . . . . Garrison Access Hacks . | . . . . Unauthorized Hacks . | . . . . Terminals . | . . . . Fabricators . | . . . . Repair Stations . | . . . . Recycling Units . | . . . . Scanalyzers . | . . . . Garrison Access . | . . . . Data Cores Recovered . | . . . . Used . | . . . . Hacking Detections 4 | . 3 1 . Full Trace Events . | . . . . Feedback Events . | . . . . Feedback Blocked . | . . . . Robot Schematics Acquired . | . . . . Robots Built . | . . . . Authchips . | . . . . Time . | . . . . Total Robot Build Rating . | . . . . Part Schematics Acquired . | . . . . Parts Built . | . . . . Authchips . | . . . . Time . | . . . . Total Part Build Rating . | . . . . Parts Repaired 1 | . 1 . . Time 26 | . 26 . . Parts Recycled . | . . . . Recycled Matter . | . . . . Retrieved Matter . | . . . . Retrieved Components . | . . . . Parts Scanalyzed . | . . . . Part Schematics Acquired . | . . . . Parts Damaged . | . . . . Bothacking | -11 -10 -10 -10 ------------ Run | Yrd Mat Min Sub Used RIF Installer . | . . . . Robots Hacked . | . . . . Non-combat . | . . . . Combat . | . . . . Robot Hacks Applied . | . . . . Relay Couplers Released . | . . . . Fabnet Peak Effective % . | . . . . Robots Rewired . | . . . . Allies Hacked . | . . . . Hacks Repelled . | . . . . Allies | -11 -10 -10 -10 -------- Run | Yrd Mat Min Sub Total Allies . | . . . . Largest Group . | . . . . Highest-Rated Group . | . . . . Highest-Rated Ally . | . . . . Total Orders . | . . . . Ally Attacks . | . . . . Total Damage . | . . . . Kills . | . . . . Allies Corrupted . | . . . . Allies Melted . | . . . . Intel | -11 -10 -10 -10 ------- Run | Yrd Mat Min Sub Robot Analysis Total . | . . . . Derelict Logs Recovered 2 | . . 2 . Drone Launches . | . . . . Drone Recoveries . | . . . . Exploration | -11 -10 -10 -10 ------------- Run | Yrd Mat Min Sub Turns Passed 2881 | 117 1192 692 880 Spaces Moved 1550 | 71 598 356 525 Core 11 | 11 . . . Treads 1539 | 60 598 356 525 Legs . | . . . . Wheels . | . . . . Hover . | . . . . Flight . | . . . . Fastest Speed 50 | 50 160 160 160 Average Speed 159 | 142 160 160 160 Slowest Speed 160 | 160 160 160 160 Overloaded Moves . | . . . . Propulsion Burnouts . | . . . . Robots Hopped . | . . . . Cave-ins Triggered . | . . . . Exploration Rate (%) 46 | 4 91 64 26 Regions Visited 3 Branch Regions 2 Pre-discovered Areas 1 | . . 1 . Known Exits Taken . | . . . . Unknown Exits Taken 3 | 1 1 1 . Scrap Searched 1 | . . 1 . Spaces Dug . | . . . . Terrain Destroyed . | . . . . Melee . | . . . . Projectile . | . . . . AOE . | . . . . Terrain Rammed . | . . . . Walls Destroyed . | . . . . Machines Disabled . | . . . . Actions | -11 -10 -10 -10 --------- Run | Yrd Mat Min Sub Total 1877 | 82 765 480 550 Wait 234 | . 99 119 16 Move 1547 | 70 597 355 525 Hop . | . . . . Pick Up 13 | 4 7 2 . Fast Attach 11 | 6 5 . . Attach 1 | . 1 . . Detach 1 | . 1 . . Swap 7 | . 6 1 . Drop 13 | . 10 3 . Fire 48 | . 39 . 9 Melee . | . . . . Ram . | . . . . Kick . | . . . . Crush 2 | 2 . . . Escape Stasis . | . . . . Rewire . | . . . . Trap . | . . . . Miscellaneous . | . . . . Route ------- -11/Scrapyard -10/Materials (discovered 5 exits: [*Mat x3] / *Min / [*Sub]) -10/Mines (discovered 3 exits: [*Mat x2] / [*Sub]) -10/Subcaves (discovered 1 exit: [*Mat]) History --------- Turn | Location | Event 9 | -11/Scrapyard | Discovered new exit (range 15) 118 | -11/Scrapyard | Entered Materials 308 | -10/Materials | Build established: Mutant 420 | -10/Materials | Discovered new exit (range 16) 649 | -10/Materials | Repaired Assault Rifle 766 | -10/Materials | Core integrity fell below 50% 836 | -10/Materials | Discovered new exit (range 16) 944 | -10/Materials | Discovered new exit (range 8) 1160 | -10/Materials | Discovered new exit (range 12) 1203 | -10/Materials | Discovered new exit (range 9) 1310 | -10/Materials | Entered Mines 1395 | -10/Mines | Discovered new exit (range 14) 1700 | -10/Mines | Found a damaged Exp. Sensor Array with a note attached 1704 | -10/Mines | Found Prototype Device 1873 | -10/Mines | Assembled infested the area 1954 | -10/Mines | Discovered new exit (range 9) 1959 | -10/Mines | Learned Materials trap positions 1981 | -10/Mines | Discovered new exit (range 10) 2002 | -10/Mines | Entered Subcaves 2057 | -10/Subcaves | Ambushed by angry Subdweller bent on revenge 2058 | -10/Subcaves | Core integrity fell below 20% 2720 | -10/Subcaves | Discovered new exit (range 15) 2882 | -10/Subcaves | Destroyed by LE-VGI(R) with Subdweller Laser Last Messages --------------- Aluminum Leg fries itself beyond repair. Particle Gun fries itself beyond repair. Aluminum Leg fries itself beyond repair. G-34 Mercenary destroyed. Sub. Power Source melted. VF-V3E(R) destroyed. Ion Engine fries itself beyond repair. Subatomizers dissect the Heat Sink. Heat Sink fries itself beyond repair. Subatomizers dissect the Wheel. G-47 Trooper destroyed. Acquired 18 matter. Aluminum Leg fries itself beyond repair. Subatomizers dissect the Wheel. Imp. Heat Sink fries itself beyond repair. Subatomizers dissect the Sub. Optics. JK-U1V(z): "She is not going to be happy we haven't found any suitable candidates yet." EXIT=FOUND Lgt. Treads destroyed. Map ----- +----------------------------------------------------+ | ????????????????????????????????????????????? | | ????????????????????????????????????????????? | | ????????????????????????????????????????????? | | ????????????????????????????????????????????? | | ????????????????????????????????????????????? | | ????????????????????????????????????????????? | | ????????????????????????????????????????????? | | ????????????????????????????????????????????? | | ????????????????????????????????????????????? | | ????????????????????????????????????????????? | | ????????????????????????????????????????????? | | ????????????????????????????????????????????? | | ????????????????????????????????????????????? | | ?????????????????????????????#??????????????? | | ???????????????????????????? #??????????????? | | ????????????????????????? ? ???????????????? | | ???????????????#???????? "" ????????????????? | | ???????????????# ##????#"" ?????????????????? | | ??????????????## #### ??????????????????? | | ??????????????# " #??????????????????? | | ??????????????? """ #??????????????????? | | ???????????????? """" #???????????????????? | | ????????????????? ""R "????????????????????? | | ??????????????????# " #?????????????????????? | | ??????????????????# #??????????????????????? | | ?????????????????## @##?????????????????????? | | ?????????????????# #?????????????????????? | | ?????????????????# #?????????????????????? | | ?????????????????# #?????????????????????? | | ?????????????????# ##?????????????????????? | | ????????????????## ##??????????????????????? | | ???????????????## ##???????????????????????? | | ???????????????# #????????????????????????? | | ???????????????# #????????????????????????? | | ???????????????# ##???????????????????????? | | ???????????????# ##??????????????????????? | | ???????????????## ##?????????????????????? | | ????????????????## #?????????????????????? | | ?????????????????# ##?????????????????????? | | ?????????????????# ###????????????????????? | | ?????????????????# ## ##???????????????????? | | ????????????????## #???????????????????? | | ???????????????## ##???????????????????? | | ??????????????## #????????????????????? | | ??????????????# ##????????????????????? | | ??????????????#### #?????????????????????? | | ?????????????????## #?????????????????????? | | ??????????????????## #?????????????????????? | | ????????????????#### ##?????????????????????? | | ???????????????## #??????????????????????? | +----------------------------------------------------+ Best States ------------- Heat Dissipation 25 Energy Generation 14 Energy Capacity 250 Matter Stores 300 Matter Capacity 300 Sight Range 16 Robot Scan Range 14 Terrain Scan Range 14 Terrain Scan Density 10 Utility Shielding 33 Evasion (%) 50 Targeting Accuracy 5 Recoil Reduction 2 Item Schematics ----------------- None Robot Schematics ------------------ None Fabricated ------------ Nothing Alien Tech Used ----------------- None Achievements -------------- None Challenges ------------ None Game ------ Seed DroneArmoredVibroblade Manual? 0 Play Time 00:16:20 Cumulative 13.2 hours Start 2024.04.29 @ 16:04:58 End 2024.04.29 @ 16:19:06 Sessions 1 Manual Loads 0 Difficulty Rogue Special Mode None Game No. 29 Rogue 29 Adventurer 0 Explorer 0 Win Type - Total 0 Types 0/0/0/0/0/0/0/0/0 Lore% 15 Gallery% 15 Achievement% 12 Wizard Run 0 Options --------- Layout 1 ASCII 0 Keyboard 0 Movement Mouse Keybinds 0 Fullscreen 0 Font 42/SmallcapsGlow Map View 50x35 Zoom Use 0% Tactical HUD 0 Map Filters NONE Filters NONE Steam 1 RUN: 0d23a21a-bca3-483a-9b14-b4a1bb35e719